Workbook

Sheet ORÇAMENTO
A1: <---- NUMERAR SERVIÇOS PARA CPU | E1: Ministério do Desenvolvimento Regional
E2: Companhia de Desenvolvimento dos Vales do São Francisco e do Parnaíba
E3: 1ª Superintendência Regional
B5: OBRA: | C5: PAVIMENTAÇÃO ASFÁLTICA EM CBUQ - ESTRADA PARA SANTO ANTÔNIO DA BOA VISTA (SÃO JOÃO DA PONTE / MG) | I5: BDI Serviços (%): | L5: ='BDI SERV'!E28 -> 22
B6: DATA: | C6: AGOSTO / 2025 | I6: BDI Diferenciado Serviços (%): | L6: ='BDI FORN'!D31 -> 15
B7: PRAZO DE EXECUÇÃO: 240 DIAS | I7: BDI Fornecimentos (%): | L7: ='BDI FORN'!D31 -> 15
B8: PLANILHA DE ORÇAMENTAÇÃO
B9: ITEM | C9: CÓDIGO | D9: FONTE | E9: DISCRIMINAÇÃO | F9: TIPO | G9: UNID. | H9: QUANT. | I9: VR.UNIT.S/BDI | J9: PR. UNIT.C/BDI | K9: C. TOT.S/BDI | L9: P. TOT.C/BDI
A10: A | B10: 1 | E10: SERVIÇOS PRELIMINARES | K10: =SUM(K11:K16) -> 355728.34 | L10: =SUM(L11:L16) -> 433708.53
A11: 1 | B11: 1.1 | C11: CPU.1 | D11: CODEVASF | E11: MOBILIZAÇÃO E DESMOBILIZAÇÃO | F11: SERV | G11: GL | H11: 1 | I11: =VLOOKUP(A11,'CPU-SERV'!A:K,11,0) -> 13978.63 | J11: =TRUNC(_xlfn.IFS(F11="SERV",I11*(1+$L$5/100),F11="SERV DIF",I11*(1+$L$6/100),F11="FORN",I11*(1+$L$7/100)),2) -> 17053.92 | K11: =TRUNC(H11*I11,2) -> 13978.63 | L11: =TRUNC(H11*J11,2) -> 17053.92
A12: 2 | B12: 1.2 | C12: CPU.2 | D12: CODEVASF | E12: ADMINISTRAÇÃO LOCAL | F12: SERV | G12: GL | H12: 1 | I12: =VLOOKUP(A12,'CPU-SERV'!A:K,11,0) -> 264441.435 | J12: =TRUNC(_xlfn.IFS(F12="SERV",I12*(1+$L$5/100),F12="SERV DIF",I12*(1+$L$6/100),F12="FORN",I12*(1+$L$7/100)),2) -> 322618.55 | K12: =TRUNC(H12*I12,2) -> 264441.43 | L12: =TRUNC(H12*J12,2) -> 322618.55
A13: 3 | B13: 1.3 | C13: CPU.3 | D13: CODEVASF | E13: CANTEIRO DE OBRAS | F13: SERV | G13: GL | H13: 1 | I13: =VLOOKUP(A13,'CPU-SERV'!A:K,11,0) -> 18464.22 | J13: =TRUNC(_xlfn.IFS(F13="SERV",I13*(1+$L$5/100),F13="SERV DIF",I13*(1+$L$6/100),F13="FORN",I13*(1+$L$7/100)),2) -> 22526.34 | K13: 18464.22 | L13: 22526.34
A14: 4 | B14: 1.4 | C14: 103689 | D14: SINAPI | E14: PLACA DE OBRA EM CHAPA DE AÇO GALVANIZADO | F14: SERV | G14: M2 | H14: 4 | I14: =VLOOKUP(A14,'CPU-SERV'!A:K,11,0) -> 550.64 | J14: =TRUNC(_xlfn.IFS(F14="SERV",I14*(1+$L$5/100),F14="SERV DIF",I14*(1+$L$6/100),F14="FORN",I14*(1+$L$7/100)),2) -> 671.78 | K14: 2202.56 | L14: 2687.12
A15: 5 | B15: 1.5 | C15: CPU.4 | D15: CODEVASF | E15: VEÍCULO PARA A FISCALIZAÇÃO, MÁXIMO 02 ANOS DE USO OU 50.000KM, PREFERENCIALMENTE NA COR BRANCA, COM IDENTIFICAÇÃO CONFORME ESPECIFICAÇÕES DA CODEVASF, INCLUSIVE COMBUSTÍVEL, MANUTENÇÃO, SEGURO E IMPOSTOS - CONFORME ESPECIFICAÇÕES | F15: SERV | G15: MÊS | H15: 10 | I15: =VLOOKUP(A15,'CPU-SERV'!A:K,11,0) -> 4264.15 | J15: =TRUNC(_xlfn.IFS(F15="SERV",I15*(1+$L$5/100),F15="SERV DIF",I15*(1+$L$6/100),F15="FORN",I15*(1+$L$7/100)),2) -> 5202.26 | K15: =TRUNC(H15*I15,2) -> 42641.5 | L15: =TRUNC(H15*J15,2) -> 52022.6
A16: 6 | B16: 1.6 | C16: 78472 | D16: SINAPI | E16: SERVIÇOS TOPOGRÁFICOS PARA PAVIMENTAÇÃO, INCLUSIVE LEVANTAMENTO PLANIALTIMÉTRICO CADASTRAL, GERAÇÃO DE NOTAS DE SERVIÇO, SEÇÕES TRANSVERSAIS E GREIDE, ESTAQUEAMENTO E ACOMPANHAMENTO EXECUTIVO | F16: SERV | G16: M2 | H16: 35000 | I16: =VLOOKUP(A16,'CPU-SERV'!A:K,11,0) -> 0.4 | J16: =TRUNC(_xlfn.IFS(F16="SERV",I16*(1+$L$5/100),F16="SERV DIF",I16*(1+$L$6/100),F16="FORN",I16*(1+$L$7/100)),2) -> 0.48 | K16: 14000 | L16: 16800
A17: B | B17: 2 | E17: TERRAPLANAGEM E PAVIMENTAÇÃO | K17: =SUM(K18:K25) -> 2324666 | L17: =SUM(L18:L25) -> 2835730
A18: 7 | B18: 2.1 | C18: 5502114 | D18: SICRO | E18: ESCAVAÇÃO, CARGA E TRANSPORTE DE MATERIAL DE 1ª CATEGORIA - DMT 1.000 A 1.200M, CAMINHO DE SERVIÇO EM REVESTIMENTO PRIMÁRIO | F18: SERV | G18: M3 | H18: 30000 | I18: =VLOOKUP(A18,'CPU-SERV'!A:K,11,0) -> 6.88 | J18: =TRUNC(_xlfn.IFS(F18="SERV",I18*(1+$L$5/100),F18="SERV DIF",I18*(1+$L$6/100),F18="FORN",I18*(1+$L$7/100)),2) -> 8.39 | K18: =TRUNC(H18*I18,2) -> 206400 | L18: =TRUNC(H18*J18,2) -> 251700
A19: 8 | B19: 2.2 | C19: 4413942 | D19: SICRO | E19: ESPALHAMENTO DE MATERIAL EM BOTA FORA | F19: SERV | G19: M3 | H19: 23000 | I19: =VLOOKUP(A19,'CPU-SERV'!A:K,11,0) -> 2 | J19: =TRUNC(_xlfn.IFS(F19="SERV",I19*(1+$L$5/100),F19="SERV DIF",I19*(1+$L$6/100),F19="FORN",I19*(1+$L$7/100)),2) -> 2.44 | K19: =TRUNC(H19*I19,2) -> 46000 | L19: =TRUNC(H19*J19,2) -> 56120
A20: 9 | B20: 2.3 | C20: 5502978 | D20: SICRO | E20: COMPACTAÇÃO DE ATERROS A 100% DO PROCTOR NORMAL | F20: SERV | G20: M3 | H20: 7000 | I20: =VLOOKUP(A20,'CPU-SERV'!A:K,11,0) -> 5.08 | J20: =TRUNC(_xlfn.IFS(F20="SERV",I20*(1+$L$5/100),F20="SERV DIF",I20*(1+$L$6/100),F20="FORN",I20*(1+$L$7/100)),2) -> 6.19 | K20: 35560 | L20: 43330
A21: 10 | B21: 2.3 | C21: 4011209 | D21: SICRO | E21: REGULARIZAÇÃO E COMPACTAÇÃO DO SUBLEITO | F21: SERV | G21: M2 | H21: 35000 | I21: =VLOOKUP(A21,'CPU-SERV'!A:K,11,0) -> 1.56 | J21: =TRUNC(_xlfn.IFS(F21="SERV",I21*(1+$L$5/100),F21="SERV DIF",I21*(1+$L$6/100),F21="FORN",I21*(1+$L$7/100)),2) -> 1.9 | K21: 54600 | L21: 66500
A22: 11 | B22: 2.4 | C22: 4011276 | D22: SICRO | E22: EXECUÇÃO E COMPACTAÇÃO DE BASE E OU SUB BASE PARA PAVIMENTAÇÃO DE BICA CORRIDA - EXCLUSIVE TRANSPORTE | F22: SERV | G22: M3 | H22: 7000 | I22: =VLOOKUP(A22,'CPU-SERV'!A:K,11,0) -> 164.01 | J22: =TRUNC(_xlfn.IFS(F22="SERV",I22*(1+$L$5/100),F22="SERV DIF",I22*(1+$L$6/100),F22="FORN",I22*(1+$L$7/100)),2) -> 200.09 | K22: 1148070 | L22: 1400630
A23: 12 | B23: 2.5 | C23: 4011352 | D23: SICRO | E23: IMPRIMAÇÃO COM EMULSÃO ASFÁLTICA (EAI) | F23: SERV | G23: M2 | H23: 35000 | I23: =VLOOKUP(A23,'CPU-SERV'!A:K,11,0) -> 0.41 | J23: =TRUNC(_xlfn.IFS(F23="SERV",I23*(1+$L$5/100),F23="SERV DIF",I23*(1+$L$6/100),F23="FORN",I23*(1+$L$7/100)),2) -> 0.5 | K23: =TRUNC(H23*I23,2) -> 14350 | L23: =TRUNC(H23*J23,2) -> 17500
A24: 13 | B24: 2.6 | C24: 4011353 | D24: SICRO | E24: PINTURA DE LIGAÇÃO COM EMULSÃO ASFÁLTICA RR-1C | F24: SERV | G24: M2 | H24: 35000 | I24: =VLOOKUP(A24,'CPU-SERV'!A:K,11,0) -> 0.28 | J24: =TRUNC(_xlfn.IFS(F24="SERV",I24*(1+$L$5/100),F24="SERV DIF",I24*(1+$L$6/100),F24="FORN",I24*(1+$L$7/100)),2) -> 0.34 | K24: 9800 | L24: 11900
A25: 14 | B25: 2.7 | C25: 4011463 | D25: SICRO | E25: EXECUÇÃO DE PAVIMENTO COM APLICAÇÃO DE CONCRETO ASFÁLTICO USINADO A QUENTE (CBUQ), CAMADA DE ROLAMENTO - EXCLUSIVE TRANSPORTE | F25: SERV | G25: T | H25: 4200 | I25: =VLOOKUP(A25,'CPU-SERV'!A:K,11,0) -> 192.83 | J25: =TRUNC(_xlfn.IFS(F25="SERV",I25*(1+$L$5/100),F25="SERV DIF",I25*(1+$L$6/100),F25="FORN",I25*(1+$L$7/100)),2) -> 235.25 | K25: 809886 | L25: 988050
A26: C | B26: 3 | E26: TRANSPORTE DE MATERIAIS | K26: =SUM(K27:K28) -> 495720 | L26: =SUM(L27:L28) -> 600840
A27: 15 | B27: 3.1 | C27: 5915321 | D27: SICRO | E27: TRANSPORTE COM CAMINHÃO BASCULANTE, EM VIA URBANA PAVIMENTADA | F27: SERV | G27: TXKM | H27: 720000 | I27: =VLOOKUP(A27,'CPU-SERV'!A:K,11,0) -> 0.66 | J27: =TRUNC(_xlfn.IFS(F27="SERV",I27*(1+$L$5/100),F27="SERV DIF",I27*(1+$L$6/100),F27="FORN",I27*(1+$L$7/100)),2) -> 0.8 | K27: =TRUNC(H27*I27,2) -> 475200 | L27: =TRUNC(H27*J27,2) -> 576000
A28: 16 | B28: 3.2 | C28: 5914434 | D28: SICRO | E28: TRANSPORTE COM CAMINHÃO CARROCERIA 9T, EM VIA URBANA PAVIMENTADA | F28: SERV | G28: TXKM | H28: 27000 | I28: =VLOOKUP(A28,'CPU-SERV'!A:K,11,0) -> 0.76 | J28: =TRUNC(_xlfn.IFS(F28="SERV",I28*(1+$L$5/100),F28="SERV DIF",I28*(1+$L$6/100),F28="FORN",I28*(1+$L$7/100)),2) -> 0.92 | K28: 20520 | L28: 24840
A29: D | B29: 4 | E29: TRANSPORTE DE MATERIAL ASFÁLTICO (BDI DIFERENCIADO) | K29: =SUM(K30:K31) -> 421737 | L29: =SUM(L30:L31) -> 484215
A30: 17 | B30: 4.1 | C30: 5914612 | D30: SICRO | E30: TRANSPORTE DE MASSA ASFÁLTICA COM CAMINHÃO BASCULANTE COM CAÇAMBA TÉRMICA, EM VIA URBANA PAVIMENTADA (BDI DIFERENCIADO) | F30: SERV DIF | G30: TXKM | H30: 520000 | I30: =VLOOKUP(A30,'CPU-SERV'!A:K,11,0) -> 0.81 | J30: =TRUNC(_xlfn.IFS(F30="SERV",I30*(1+$L$5/100),F30="SERV DIF",I30*(1+$L$6/100),F30="FORN",I30*(1+$L$7/100)),2) -> 0.93 | K30: =TRUNC(H30*I30,2) -> 421200 | L30: =TRUNC(H30*J30,2) -> 483600
A31: 18 | B31: 4.2 | C31: 5914622 | D31: SICRO | E31: TRANSPORTE COM CAMINHÃO TANQUE DE TRANSPORTE DE MATERIAL ASFÁLTICO DE 30000 L, EM VIA URBANA PAVIMENTADA (BDI DIFERENCIADO) | F31: SERV DIF | G31: TXKM | H31: 300 | I31: =VLOOKUP(A31,'CPU-SERV'!A:K,11,0) -> 1.79 | J31: =TRUNC(_xlfn.IFS(F31="SERV",I31*(1+$L$5/100),F31="SERV DIF",I31*(1+$L$6/100),F31="FORN",I31*(1+$L$7/100)),2) -> 2.05 | K31: 537 | L31: 615
A32: E | B32: 5 | E32: DRENAGEM E OBRAS COMPLEMENTARES | K32: =SUM(K33:K58) -> 773267.11 | L32: =SUM(L33:L58) -> 943328.28
A33: 19 | B33: 5.1 | C33: 2003947 | D33: SICRO | E33: MEIO FIO DE CONCRETO - MFC 05, MOLDADO NO LOCAL - AREIA E BRITA COMERCIAIS | F33: SERV | G33: M | H33: 920 | I33: =VLOOKUP(A33,'CPU-SERV'!A:K,11,0) -> 21.61 | J33: =TRUNC(_xlfn.IFS(F33="SERV",I33*(1+$L$5/100),F33="SERV DIF",I33*(1+$L$6/100),F33="FORN",I33*(1+$L$7/100)),2) -> 26.36 | K33: =TRUNC(H33*I33,2) -> 19881.2 | L33: =TRUNC(H33*J33,2) -> 24251.2
A34: 20 | B34: 5.2 | C34: 2003943 | D34: SICRO | E34: MEIO FIO DE CONCRETO - MFC 03, MOLDADO NO LOCAL - AREIA E BRITA COMERCIAIS | F34: SERV | G34: M | H34: 230 | I34: =VLOOKUP(A34,'CPU-SERV'!A:K,11,0) -> 27.5 | J34: =TRUNC(_xlfn.IFS(F34="SERV",I34*(1+$L$5/100),F34="SERV DIF",I34*(1+$L$6/100),F34="FORN",I34*(1+$L$7/100)),2) -> 33.55 | K34: 6325 | L34: 7716.5
A35: 21 | B35: 5.3 | C35: 2003261 | D35: SICRO | E35: SARJETA TRIANGULAR DE CONCRETO - STC 80-15 - ESCAVAÇÃO MECÂNICA - AREIA E BRITA COMERCIAIS | F35: SERV | G35: M | H35: 3000 | I35: =VLOOKUP(A35,'CPU-SERV'!A:K,11,0) -> 47.29 | J35: =TRUNC(_xlfn.IFS(F35="SERV",I35*(1+$L$5/100),F35="SERV DIF",I35*(1+$L$6/100),F35="FORN",I35*(1+$L$7/100)),2) -> 57.69 | K35: 141870 | L35: 173070
A36: 22 | B36: 5.4 | C36: 2003387 | D36: SICRO | E36: ENTRADA PARA DESCIDA D'ÁGUA - EDA 02 - AREIA E BRITA COMERCIAIS | F36: SERV | G36: UNID. | H36: 12 | I36: =VLOOKUP(A36,'CPU-SERV'!A:K,11,0) -> 73.96 | J36: =TRUNC(_xlfn.IFS(F36="SERV",I36*(1+$L$5/100),F36="SERV DIF",I36*(1+$L$6/100),F36="FORN",I36*(1+$L$7/100)),2) -> 90.23 | K36: 887.52 | L36: 1082.76
A37: 23 | B37: 5.5 | C37: 2003389 | D37: SICRO | E37: DESCIDA D'ÁGUA DE ATERRO TIPO RÁPIDO - DAR 01 - AREIA E BRITA COMERCIAIS | F37: SERV | G37: M | H37: 45 | I37: =VLOOKUP(A37,'CPU-SERV'!A:K,11,0) -> 227.95 | J37: =TRUNC(_xlfn.IFS(F37="SERV",I37*(1+$L$5/100),F37="SERV DIF",I37*(1+$L$6/100),F37="FORN",I37*(1+$L$7/100)),2) -> 278.09 | K37: 10257.75 | L37: 12514.05
A38: 24 | B38: 5.6 | C38: 2003455 | D38: SICRO | E38: DISSIPADOR DE ENERGIA - DEB 04 - AREIA, BRITA E PEDRA DE MÃO COMERCIAIS | F38: SERV | G38: UNID. | H38: 12 | I38: =VLOOKUP(A38,'CPU-SERV'!A:K,11,0) -> 1368.85 | J38: =TRUNC(_xlfn.IFS(F38="SERV",I38*(1+$L$5/100),F38="SERV DIF",I38*(1+$L$6/100),F38="FORN",I38*(1+$L$7/100)),2) -> 1669.99 | K38: 16426.2 | L38: 20039.88
A39: 25 | B39: 5.7 | C39: 2003481 | D39: SICRO | E39: CAIXA COLETORA DE SARJETA - CCS 03 - COM GRELHA DE CONCRETO - TCC 01 - AREIA E BRITA COMERCIAIS | F39: SERV | G39: UNID. | H39: 6 | I39: =VLOOKUP(A39,'CPU-SERV'!A:K,11,0) -> 3763.8 | J39: =TRUNC(_xlfn.IFS(F39="SERV",I39*(1+$L$5/100),F39="SERV DIF",I39*(1+$L$6/100),F39="FORN",I39*(1+$L$7/100)),2) -> 4591.83 | K39: 22582.8 | L39: 27550.98
A40: 26 | B40: 5.8 | C40: 804317 | D40: SICRO | E40: BOCA PARA BUEIRO TRIPLO TUBULAR DE CONCRETO (BTTC), D=1,0M - AREIA E BRITA COMERCIAIS | F40: SERV | G40: UNID. | H40: 2 | I40: =VLOOKUP(A40,'CPU-SERV'!A:K,11,0) -> 2815.77 | J40: =TRUNC(_xlfn.IFS(F40="SERV",I40*(1+$L$5/100),F40="SERV DIF",I40*(1+$L$6/100),F40="FORN",I40*(1+$L$7/100)),2) -> 3435.23 | K40: 5631.54 | L40: 6870.46
A41: 27 | B41: 5.9 | C41: 804292 | D41: SICRO | E41: CORPO DE BUEIRO TRIPLO TUBULAR DE CONCRETO (BTTC), D=1,0M - PA-1 - AREIA E BRITA COMERCIAIS | F41: SERV | G41: M | H41: 27 | I41: =VLOOKUP(A41,'CPU-SERV'!A:K,11,0) -> 2391.11 | J41: =TRUNC(_xlfn.IFS(F41="SERV",I41*(1+$L$5/100),F41="SERV DIF",I41*(1+$L$6/100),F41="FORN",I41*(1+$L$7/100)),2) -> 2917.15 | K41: 64559.97 | L41: 78763.05
A42: 28 | B42: 5.10 | C42: 804121 | D42: SICRO | E42: BOCA PARA BUEIRO SIMPLES TUBULAR DE CONCRETO (BSTC), D=1,0M - AREIA E BRITA COMERCIAIS | F42: SERV | G42: UNID. | H42: 3 | I42: =VLOOKUP(A42,'CPU-SERV'!A:K,11,0) -> 1923.98 | J42: =TRUNC(_xlfn.IFS(F42="SERV",I42*(1+$L$5/100),F42="SERV DIF",I42*(1+$L$6/100),F42="FORN",I42*(1+$L$7/100)),2) -> 2347.25 | K42: 5771.94 | L42: 7041.75
A43: 29 | B43: 5.11 | C43: 804037 | D43: SICRO | E43: CORPO DE BUEIRO SIMPLES TUBULAR DE CONCRETO (BSTC), D=1,0M - PA-1 - AREIA E BRITA COMERCIAIS | F43: SERV | G43: M | H43: 200 | I43: =VLOOKUP(A43,'CPU-SERV'!A:K,11,0) -> 911.85 | J43: =TRUNC(_xlfn.IFS(F43="SERV",I43*(1+$L$5/100),F43="SERV DIF",I43*(1+$L$6/100),F43="FORN",I43*(1+$L$7/100)),2) -> 1112.45 | K43: 182370 | L43: 222490
A44: 30 | B44: 5.12 | C44: 2003683 | D44: SICRO | E44: POÇO DE VISITA TIPO PVI-04 - AREIA E BRITA COMERCIAIS | F44: SERV | G44: UNID. | H44: 2 | I44: =VLOOKUP(A44,'CPU-SERV'!A:K,11,0) -> 2514.75 | J44: =TRUNC(_xlfn.IFS(F44="SERV",I44*(1+$L$5/100),F44="SERV DIF",I44*(1+$L$6/100),F44="FORN",I44*(1+$L$7/100)),2) -> 3067.99 | K44: 5029.5 | L44: 6135.98
A45: 31 | B45: 5.13 | C45: 2003720 | D45: SICRO | E45: CHAMINÉ PARA POÇOS DE VISITA - CPVI-04 - AREIA E BRITA COMERCIAIS | F45: SERV | G45: UNID. | H45: 2 | I45: =VLOOKUP(A45,'CPU-SERV'!A:K,11,0) -> 2281.53 | J45: =TRUNC(_xlfn.IFS(F45="SERV",I45*(1+$L$5/100),F45="SERV DIF",I45*(1+$L$6/100),F45="FORN",I45*(1+$L$7/100)),2) -> 2783.46 | K45: 4563.06 | L45: 5566.92
A46: 32 | B46: 5.14 | C46: 4805757 | D46: SICRO | E46: ESCAVAÇÃO MECÂNICA DE VALAS EM MATERIAL DE 1ª CATEGORIA | F46: SERV | G46: M3 | H46: 1200 | I46: =VLOOKUP(A46,'CPU-SERV'!A:K,11,0) -> 6.85 | J46: =TRUNC(_xlfn.IFS(F46="SERV",I46*(1+$L$5/100),F46="SERV DIF",I46*(1+$L$6/100),F46="FORN",I46*(1+$L$7/100)),2) -> 8.35 | K46: 8220 | L46: 10020
A47: 33 | B47: 5.15 | C47: 4805756 | D47: SICRO | E47: APILOAMENTO MANUAL DE FUNDO DE VALA | F47: SERV | G47: M2 | H47: 600 | I47: =VLOOKUP(A47,'CPU-SERV'!A:K,11,0) -> 4.82 | J47: =TRUNC(_xlfn.IFS(F47="SERV",I47*(1+$L$5/100),F47="SERV DIF",I47*(1+$L$6/100),F47="FORN",I47*(1+$L$7/100)),2) -> 5.88 | K47: 2892 | L47: 3528
A48: 34 | B48: 5.16 | C48: 2106292 | D48: SICRO | E48: ESCORAMENTO CONTÍNUO DE VALAS COM TÁBUAS E LONGARINAS, PROFUNDIDADE ATÉ 4,0M - CONFECÇÃO, INSTALAÇÃO E RETIRADA | F48: SERV | G48: M2 | H48: 900 | I48: =VLOOKUP(A48,'CPU-SERV'!A:K,11,0) -> 111.57 | J48: =TRUNC(_xlfn.IFS(F48="SERV",I48*(1+$L$5/100),F48="SERV DIF",I48*(1+$L$6/100),F48="FORN",I48*(1+$L$7/100)),2) -> 136.11 | K48: 100413 | L48: 122499
A49: 35 | B49: 5.17 | C49: 4815671 | D49: SICRO | E49: REATERRO E COMPACTAÇÃO MANUAL DE VALAS COM SOQUETE VIBRATÓRIO | F49: SERV | G49: M3 | H49: 850 | I49: =VLOOKUP(A49,'CPU-SERV'!A:K,11,0) -> 16.86 | J49: =TRUNC(_xlfn.IFS(F49="SERV",I49*(1+$L$5/100),F49="SERV DIF",I49*(1+$L$6/100),F49="FORN",I49*(1+$L$7/100)),2) -> 20.56 | K49: 14331 | L49: 17476
A50: 36 | B50: 5.18 | C50: 94990 | D50: SINAPI | E50: EXECUÇÃO DE PASSEIO (CALÇADA) OU PISO DE CONCRETO MOLDADO IN LOCO, ACABAMENTO CONVENCIONAL, NÃO ARMADO | F50: SERV | G50: M3 | H50: 5 | I50: =VLOOKUP(A50,'CPU-SERV'!A:K,11,0) -> 757.11 | J50: =TRUNC(_xlfn.IFS(F50="SERV",I50*(1+$L$5/100),F50="SERV DIF",I50*(1+$L$6/100),F50="FORN",I50*(1+$L$7/100)),2) -> 923.67 | K50: 3785.55 | L50: 4618.35
A51: 37 | B51: 5.19 | C51: 5213489 | D51: SICRO | E51: PLACA EM AÇO - 2,00X1,00M - PELÍCULA RETRORREFLETIVA - FORNECIMENTO E INSTALAÇÃO, INCLUSIVE SUPORTE | F51: SERV | G51: UN. | H51: 2 | I51: =VLOOKUP(A51,'CPU-SERV'!A:K,11,0) -> 913.45 | J51: =TRUNC(_xlfn.IFS(F51="SERV",I51*(1+$L$5/100),F51="SERV DIF",I51*(1+$L$6/100),F51="FORN",I51*(1+$L$7/100)),2) -> 1114.4 | K51: 1826.9 | L51: 2228.8
A52: 38 | B52: 5.19 | C52: 5213464 | D52: SICRO | E52: PLACA DE ADVERTÊNCIA EM AÇO, LADO DE 60CM - PELÍCULA RETRORREFLETIVA - FORNECIMENTO E INSTALAÇÃO, INCLUSIVE SUPORTE | F52: SERV | G52: UN. | H52: 12 | I52: =VLOOKUP(A52,'CPU-SERV'!A:K,11,0) -> 271.91 | J52: =TRUNC(_xlfn.IFS(F52="SERV",I52*(1+$L$5/100),F52="SERV DIF",I52*(1+$L$6/100),F52="FORN",I52*(1+$L$7/100)),2) -> 331.73 | K52: 3262.92 | L52: 3980.76
A53: 39 | B53: 5.20 | C53: 5213440 | D53: SICRO | E53: PLACA DE REGULAMENTAÇÃO EM AÇO, D=60CM - PELÍCULA RETRORREFLETIVA - FORNECIMENTO E INSTALAÇÃO, INCLUSIVE SUPORTE | F53: SERV | G53: UN. | H53: 6 | I53: =VLOOKUP(A53,'CPU-SERV'!A:K,11,0) -> 271.87 | J53: =TRUNC(_xlfn.IFS(F53="SERV",I53*(1+$L$5/100),F53="SERV DIF",I53*(1+$L$6/100),F53="FORN",I53*(1+$L$7/100)),2) -> 331.68 | K53: 1631.22 | L53: 1990.08
A54: 40 | B54: 5.21 | C54: 5213476 | D54: SICRO | E54: PLACA DELINEADORA EM AÇO, 0,50 X 0,60M - PELÍCULA RETRORREFLETIVA - FORNECIMENTO E IMPLANTAÇÃO | F54: SERV | G54: UN. | H54: 16 | I54: =VLOOKUP(A54,'CPU-SERV'!A:K,11,0) -> 179 | J54: =TRUNC(_xlfn.IFS(F54="SERV",I54*(1+$L$5/100),F54="SERV DIF",I54*(1+$L$6/100),F54="FORN",I54*(1+$L$7/100)),2) -> 218.38 | K54: 2864 | L54: 3494.08
A55: 41 | B55: 5.22 | C55: 3713604 | D55: SICRO | E55: DEFENSA SEMIMALEÁVEL SIMPLES, INCLUSIVE POSTE, ESPAÇADOR, CALÇO E ACESSÓRIOS PARA FIXAÇÃO - FORNECIMENTO E IMPLANTAÇÃO | F55: SERV | G55: M | H55: 86 | I55: =VLOOKUP(A55,'CPU-SERV'!A:K,11,0) -> 355.64 | J55: =TRUNC(_xlfn.IFS(F55="SERV",I55*(1+$L$5/100),F55="SERV DIF",I55*(1+$L$6/100),F55="FORN",I55*(1+$L$7/100)),2) -> 433.88 | K55: 30585.04 | L55: 37313.68
A56: 42 | B56: 5.23 | C56: 5213401 | D56: SICRO | E56: PINTURA DE EIXO VIÁRIO SOBRE ASFALTO COM TINTA RETRORREFLETIVA A BASE DE RESINA ACRÍLICA COM MICROESFERAS DE VIDRO, APLICAÇÃO MECÂNICA COM DEMARCADORA AUTOPROPELIDA | F56: SERV | G56: M2 | H56: 1900 | I56: =VLOOKUP(A56,'CPU-SERV'!A:K,11,0) -> 27.24 | J56: =TRUNC(_xlfn.IFS(F56="SERV",I56*(1+$L$5/100),F56="SERV DIF",I56*(1+$L$6/100),F56="FORN",I56*(1+$L$7/100)),2) -> 33.23 | K56: 51756 | L56: 63137
A57: 43 | B57: 5.24 | C57: 5213360 | D57: SICRO | E57: TACHA REFLETIVA EM PLÁSTICO INJETADO - BIDIRECIONAL COM UM PINO - FORNECIMENTO E COLOCAÇÃO | F57: SERV | G57: UNID. | H57: 1900 | I57: =VLOOKUP(A57,'CPU-SERV'!A:K,11,0) -> 32.35 | J57: =TRUNC(_xlfn.IFS(F57="SERV",I57*(1+$L$5/100),F57="SERV DIF",I57*(1+$L$6/100),F57="FORN",I57*(1+$L$7/100)),2) -> 39.46 | K57: 61465 | L57: 74974
A58: 44 | B58: 5.25 | C58: 5213405 | D58: SICRO | E58: PINTURA DE FAIXA DE PEDESTRE OU ZEBRADA TINTA RETRORREFLETIVA A BASE DE RESINA ACRÍLICA COM MICROESFERAS DE VIDRO, APLICAÇÃO MANUAL | F58: SERV | G58: M2 | H58: 100 | I58: =VLOOKUP(A58,'CPU-SERV'!A:K,11,0) -> 40.78 | J58: =TRUNC(_xlfn.IFS(F58="SERV",I58*(1+$L$5/100),F58="SERV DIF",I58*(1+$L$6/100),F58="FORN",I58*(1+$L$7/100)),2) -> 49.75 | K58: 4078 | L58: 4975
A59: F | B59: 6 | E59: FORNECIMENTOS - MATERIAL ASFÁLTICO (BDI DIFERENCIADO) | K59: =SUM(K60:K65) -> 1407869.41 | L59: =SUM(L60:L65) -> 1619047.33
A60: 45 | B60: 6.1 | C60: CPU.7 | D60: CODEVASF | E60: AQUISIÇÃO DE EMULSÃO ASFÁLTICA PARA IMPRIMAÇÃO (EAI) - EXCLUSIVE TRANSPORTE | F60: FORN | G60: T | H60: 38 | I60: =VLOOKUP(A60,'CPU-FORNEC'!A:J,9,0) -> 2723.1 | J60: =TRUNC(_xlfn.IFS(F60="SERV",I60*(1+$L$5/100),F60="SERV DIF",I60*(1+$L$6/100),F60="FORN",I60*(1+$L$7/100)),2) -> 3131.56 | K60: =TRUNC(H60*I60,2) -> 103477.8 | L60: =TRUNC(H60*J60,2) -> 118999.28
A61: 46 | B61: 6.2 | C61: CPU.8 | D61: CODEVASF | E61: TRANSPORTE DE EMULSÃO ASFÁLTICA PARA IMPRIMAÇÃO (EAI) | F61: SERV DIF | G61: T | H61: 38 | I61: =VLOOKUP(A61,'CPU-FORNEC'!A:J,9,0) -> 466.4 | J61: =TRUNC(_xlfn.IFS(F61="SERV",I61*(1+$L$5/100),F61="SERV DIF",I61*(1+$L$6/100),F61="FORN",I61*(1+$L$7/100)),2) -> 536.36 | K61: 17723.2 | L61: 20381.68
A62: 47 | B62: 6.3 | C62: CPU.9 | D62: CODEVASF | E62: AQUISIÇÃO DE EMULSAO ASFALTICA CATIONICA RR-1C - EXCLUSIVE TRANSPORTE | F62: FORN | G62: T | H62: 16 | I62: =VLOOKUP(A62,'CPU-FORNEC'!A:J,9,0) -> 3456.95 | J62: =TRUNC(_xlfn.IFS(F62="SERV",I62*(1+$L$5/100),F62="SERV DIF",I62*(1+$L$6/100),F62="FORN",I62*(1+$L$7/100)),2) -> 3975.49 | K62: 55311.2 | L62: 63607.84
A63: 48 | B63: 6.4 | C63: CPU.10 | D63: CODEVASF | E63: TRANSPORTE DE EMULSÃO ASFÁLTICA CATIONICA RR-1C | F63: SERV DIF | G63: T | H63: 16 | I63: =VLOOKUP(A63,'CPU-FORNEC'!A:J,9,0) -> 484.42 | J63: =TRUNC(_xlfn.IFS(F63="SERV",I63*(1+$L$5/100),F63="SERV DIF",I63*(1+$L$6/100),F63="FORN",I63*(1+$L$7/100)),2) -> 557.08 | K63: 7750.72 | L63: 8913.28
A64: 49 | B64: 6.5 | C64: CPU.11 | D64: CODEVASF | E64: AQUISIÇÃO DE CONCRETO ASFÁLTICO DE PETRÓLEO - CAP 50/70 - EXCLUSIVE TRANSPORTE | F64: FORN | G64: T | H64: 233 | I64: =VLOOKUP(A64,'CPU-FORNEC'!A:J,9,0) -> 4496.77 | J64: =TRUNC(_xlfn.IFS(F64="SERV",I64*(1+$L$5/100),F64="SERV DIF",I64*(1+$L$6/100),F64="FORN",I64*(1+$L$7/100)),2) -> 5171.28 | K64: 1047747.41 | L64: 1204908.24
A65: 50 | B65: 6.6 | C65: CPU.12 | D65: CODEVASF | E65: TRANSPORTE DE CONCRETO ASFÁLTICO DE PETRÓLEO - CAP 50/70 | F65: SERV DIF | G65: T | H65: 233 | I65: =VLOOKUP(A65,'CPU-FORNEC'!A:J,9,0) -> 754.76 | J65: =TRUNC(_xlfn.IFS(F65="SERV",I65*(1+$L$5/100),F65="SERV DIF",I65*(1+$L$6/100),F65="FORN",I65*(1+$L$7/100)),2) -> 867.97 | K65: 175859.08 | L65: 202237.01
B66: TOTAL GERAL DA OBRA COM BDI | K66: =SUM(K10,K17,K26,K32,K59,K29) -> 5778987.86 | L66: =SUM(L10,L17,L26,L32,L59,L29) -> 6916869.14

Sheet CPU-SERV
A1: 1 | B1: 1ª/GRD | K1: =J37 -> 13978.63 | L1: Minas Gerais
B2: OBRA: | C2: PAVIMENTAÇÃO ASFÁLTICA EM CBUQ - ESTRADA PARA SANTO ANTÔNIO DA BOA VISTA (SÃO JOÃO DA PONTE / MG) | L2: Janeiro/2025
B3: Custo Unitário de Referência | E3: Minas Gerais | K3: QUANT.MATERIAL: | M3: =SUM(M20:M1839) -> 2153997.638 | N3: =M3/(ORÇAMENTO!L66-ORÇAMENTO!L59) -> 0.4065817453
E4: Janeiro/2025 | H4: Produção da equipe | I4: 0.5 | J4: =VLOOKUP(A1,ORÇAMENTO!$A$10:$L$66,7,1) -> GL
B5: CPU.1 | C5: MOBILIZAÇÃO E DESMOBILIZAÇÃO | I5: Valores em reais (R$)
B6: A - EQUIPAMENTOS | D6: Quantidade | E6: Utilização | G6: Custo Horário | J6: Custo
E7: Operativa | F7: Improdutiva | G7: Produtivo | H7: Improdutivo | J7: Horário Total
B8: E9687 | C8: Caminhão carroceria com capacidade de 5 t - 120 kW | D8: 8 | E8: 0.5 | F8: 0.5 | G8: 154.8269 | H8: 59.7199 | J8: =D8*(E8*G8+F8*H8) -> 858.1872 | L8: distancia = | M8: 125 | N8: MONTES CLAROS
B9: E9575 | C9: Caminhão basculante com caçamba estanque com capacidade de 14 m³ - 210 kW | D9: 8 | E9: 1 | F9: 0 | G9: 314.1607 | H9: 91.2661 | J9: =D9*(E9*G9+F9*H9) -> 2513.2856 | L9: Pá carregadeira | O9: 10.1 | P9: ton
H10: Custo horário total de equipamentos | J10: =SUM(J8:J9) -> 3371.4728 | L10: Motoniveladora | O10: 12.47 | P10: ton
B11: B - MÃO DE OBRA | D11: Quantidade | E11: Unidade | G11: Custo Horário | H11: Custo Horário Total | L11: Trator de pneus | O11: 2.8 | P11: ton
B12: P9824 | C12: Servente | D12: 8 | E12: h | G12: 21.4354 | J12: =D12*G12 -> 171.4832 | L12: Rolo Compactador | O12: 15.33 | P12: ton
J13: =D13*G13 -> 0 | L13: Grade de disco | O13: 1 | P13: ton
D14: Custo horário total de mão de obra | J14: =SUM(J12:J13) -> 171.4832 | L14: RETROESCAVADEIRA | O14: 6.67 | P14: ton
D15: Custo horário total de execução | J15: =J10+J14 -> 3542.956
D16: Custo unitário de execução | J16: =J15/I4 -> 7085.912 | L16: MOBILIZAÇÃO + DESMOBILIZAÇÃO DOS EQUIPTOS | O16: =SUM(O9:O15)*M8 -> 6046.25 | P16: ton.km
H17: Custo do FIC | J17: 0
H18: Custo do FIT | J18: 0
B19: C - MATERIAL | D19: Quantidade | E19: Unidade | G19: Preço Unitário | H19: Custo Unitário
B20: - | C20: 0 | E20: 0 | G20: 0 | J20: =D20*G20 -> 0 | L20: =VLOOKUP(A1,ORÇAMENTO!A$11:L$66,8,FALSE) -> 1 | M20: =J20*L20 -> 0
B21: - | C21: 0 | E21: 0 | G21: 0 | J21: =D21*G21 -> 0 | L21: =VLOOKUP(A1,ORÇAMENTO!A$11:L$66,8,FALSE) -> 1 | M21: =J21*L21 -> 0
D22: Custo unitário total de material | J22: =SUM(J20:J21) -> 0
B23: D - ATIVIDADES AUXILIARES | D23: Quantidade | E23: Unidade | G23: Custo Unitário | H23: Custo Unitário
B24: 5914640 | C24: Transporte com cavalo mecânico com semirreboque com capacidade de 32 t - rodovia pavimentada | D24: 12092.5 | E24: tkm | G24: 0.57 | J24: =D24*G24 -> 6892.725
B25: - | C25: 0 | D25: 0 | E25: 0 | G25: 0 | J25: =D25*G25 -> 0
D26: Custo total de atividades auxiliares | J26: =SUM(J24:J25) -> 6892.725
H27: Subtotal | J27: =J16+J22+J26+J17+J18 -> 13978.637
B28: E - TEMPO FIXO | D28: Código | E28: Quantidade | F28: Unidade | H28: Custo Unitário | I28: Custo Unitário
B29: - | C29: 0 | D29: - | F29: 0 | H29: 0 | J29: =ROUNDDOWN(E29*H29,4) -> 0
B30: - | C30: 0 | D30: - | F30: 0 | H30: 0 | J30: =ROUNDDOWN(E30*H30,4) -> 0
D31: Custo unitário total de tempo fixo | J31: =SUM(J29:J30) -> 0
B32: F - MOMENTO DE TRANSPORTE | D32: Quantidade | E32: Unidade | F32: DMT | J32: Custo Unitário
F33: LN | G33: RP | H33: P
B34: - | C34: 0 | E34: tkm
B35: - | C35: 0 | E35: tkm
D36: Custo unitário total de transporte
F37: Custo unitário direto total | J37: =TRUNC(J27+J31,2) -> 13978.63
B38: Obs.
A40: =A1+1 -> 2 | B40: 1ª/GRD | K40: =J81 -> 264441.435
B41: OBRA: | C41: PAVIMENTAÇÃO ASFÁLTICA EM CBUQ - ESTRADA PARA SANTO ANTÔNIO DA BOA VISTA (SÃO JOÃO DA PONTE / MG)
B42: Custo Unitário de Referência | E42: Minas Gerais
E43: Janeiro/2025 | H43: Produção da equipe | I43: 0.125 | J43: =VLOOKUP(A40,ORÇAMENTO!$A$10:$L$66,7,1) -> GL | K43: 8 MESES
B44: CPU.2 | C44: ADMINISTRAÇÃO LOCAL | I44: Valores em reais (R$)
B45: A - EQUIPAMENTOS | D45: Quantidade | E45: Utilização | G45: Custo Horário | J45: Custo
E46: Operativa | F46: Improdutiva | G46: Produtivo | H46: Improdutivo | J46: Horário Total
B47: - | C47: 0 | G47: 0 | H47: 0 | J47: =D47*(E47*G47+F47*H47) -> 0
B48: - | C48: 0 | G48: 0 | H48: 0 | J48: =D48*(E48*G48+F48*H48) -> 0
H49: Custo horário total de equipamentos | J49: =SUM(J47:J48) -> 0
B50: B - MÃO DE OBRA | D50: Quantidade | E50: Unidade | G50: Custo Horário | H50: Custo Horário Total
B51: P9812 | C51: Engenheiro | D51: 0.2193964301 | E51: mês | G51: 24042.89842 | J51: =D51*G51 -> 5274.926082
B52: P9840 | C52: Encarregado geral | D52: 1 | E52: mês | G52: 13559.4041 | J52: =D52*G52 -> 13559.4041
B53: P9876 | C53: Técnico de segurança do trabalho | D53: 1 | E53: mês | G53: 7971.3544 | J53: 7971.3544
B54: P9858 | C54: Laboratorista | D54: 0.5 | E54: mês | G54: 6457.7923 | J54: 3228.89615
B55: P9806 | C55: Auxiliar administrativo | D55: 0.5 | E55: mês | G55: 4564.7979 | J55: 2282.39895
D56: Custo horário total de mão de obra | J56: =SUM(J51:J55) -> 32316.97968
D57: Custo horário total de execução | J57: =J49+J56 -> 32316.97968
D58: Custo unitário de execução | J58: =J57/I43 -> 258535.8375
H59: Custo do FIC | J59: -
H60: Custo do FIT | J60: -
B61: C - MATERIAL | D61: Quantidade | E61: Unidade | G61: Preço Unitário | H61: Custo Unitário
B62: - | C62: 0 | D62: 0 | E62: 0 | G62: 0 | J62: =D62*G62 -> 0
B63: - | C63: 0 | D63: 0 | E63: 0 | G63: 0 | J63: 0
D64: Custo unitário total de material | J64: =SUM(J62:J63) -> 0
B65: D - ATIVIDADES AUXILIARES | D65: Quantidade | E65: Unidade | G65: Custo Unitário | H65: Custo Unitário
B66: 14250 | C66: Energia Elétrica | D66: 480 | E66: kwh | G66: 0.95 | J66: =D66*G66 -> 456
B67: 44480 | C67: Tarifa A - Água e Esgoto | D67: 48 | E67: m³ | G67: 17.97 | J67: =D67*G67 -> 862.56
B68: 5212560 | C68: Placa de advertência para sinalização de obras montada em suporte metálico móvel, lado 1,00 m - utilização de 600 ciclos - fornecimento, 01 implantação e 01 retirada diária | D68: 1056 | E68: un.dia | G68: 3.89 | J68: =D68*G68 -> 4107.84
B69: Cotação | C69: Telefone | D69: 8 | E69: mês | G69: 59.9 | J69: =D69*G69 -> 479.2
D70: Custo total de atividades auxiliares | J70: =SUM(J66:J69) -> 5905.6
H71: Subtotal | J71: =J58+J64+J70 -> 264441.4375
B72: E - TEMPO FIXO | D72: Código | E72: Quantidade | F72: Unidade | H72: Custo Unitário | I72: Custo Unitário
B73: - | C73: 0 | D73: - | E73: 0 | F73: t | H73: 0 | J73: =ROUNDDOWN(E73*H73,4) -> 0
B74: - | C74: 0 | D74: - | E74: 0 | F74: t | H74: 0 | J74: =ROUNDDOWN(E74*H74,4) -> 0
D75: Custo unitário total de tempo fixo | J75: =SUM(J73:J74) -> 0
B76: F - MOMENTO DE TRANSPORTE | D76: Quantidade | E76: Unidade | F76: DMT | J76: Custo Unitário
F77: LN | G77: RP | H77: P
B78: - | C78: 0 | E78: tkm
B79: - | C79: 0 | E79: tkm
D80: Custo unitário total de transporte
F81: Custo unitário direto total | J81: =TRUNC(J71+J75,2)+0.005 -> 264441.435
B82: Obs.
A84: =A40+1 -> 3 | B84: 1ª/GRD | K84: =J120 -> 18464.22
B85: OBRA: | C85: PAVIMENTAÇÃO ASFÁLTICA EM CBUQ - ESTRADA PARA SANTO ANTÔNIO DA BOA VISTA (SÃO JOÃO DA PONTE / MG)
B86: Custo Unitário de Referência | E86: Minas Gerais
E87: Janeiro/2025 | H87: Produção da equipe | I87: 1 | J87: =VLOOKUP(A84,ORÇAMENTO!$A$10:$L$66,7,1) -> GL
B88: CPU.3 | C88: CANTEIRO DE OBRAS | I88: Valores em reais (R$)
B89: A - EQUIPAMENTOS | D89: Quantidade | E89: Utilização | G89: Custo Horário | J89: Custo
E90: Operativa | F90: Improdutiva | G90: Produtivo | H90: Improdutivo | J90: Horário Total
B91: - | C91: 0 | G91: 0 | H91: 0 | J91: =D91*(E91*G91+F91*H91) -> 0
B92: - | C92: 0 | G92: 0 | H92: 0 | J92: =D92*(E92*G92+F92*H92) -> 0
H93: Custo horário total de equipamentos | J93: =SUM(J91:J92) -> 0
B94: B - MÃO DE OBRA | D94: Quantidade | E94: Unidade | G94: Custo Horário | H94: Custo Horário Total
B95: P9824 | C95: Servente | D95: 16 | E95: h | G95: 21.4354 | J95: =D95*G95 -> 342.9664
B96: P9808 | C96: Carpinteiro | D96: 8 | E96: h | G96: 26.8814 | J96: =D96*G96 -> 215.0512
D97: Custo horário total de mão de obra | J97: =SUM(J95:J96) -> 558.0176
D98: Custo horário total de execução | J98: =J93+J97 -> 558.0176
D99: Custo unitário de execução | J99: =J98/I87 -> 558.0176
H100: Custo do FIC | J100: -
H101: Custo do FIT | J101: -
B102: C - MATERIAL | D102: Quantidade | E102: Unidade | G102: Preço Unitário | H102: Custo Unitário
B103: M0053 | C103: Tela plástica em polipropileno na cor laranja para tapume - L = 1,2 m | D103: 100 | E103: m | G103: 1.7621 | J103: =D103*G103 -> 176.21 | L103: =VLOOKUP(A84,ORÇAMENTO!A$11:L$66,8,FALSE) -> 1 | M103: =J103*L103 -> 176.21
B104: - | C104: 0 | D104: 0 | E104: 0 | G104: 0 | J104: =D104*G104 -> 0 | L104: =VLOOKUP(A84,ORÇAMENTO!A$11:L$66,8,FALSE) -> 1 | M104: =J104*L104 -> 0
D105: Custo unitário total de material | J105: =SUM(J103:J104) -> 176.21
B106: D - ATIVIDADES AUXILIARES | D106: Quantidade | E106: Unidade | G106: Custo Unitário | H106: Custo Unitário
B107: 10775 | C107: Locação de container 2,30 X 6,00 m, alt. 2,50 m, com 1 sanitário, para escritório, completo, sem divisórias internas | D107: 8 | E107: mês | G107: 985 | J107: =D107*G107 -> 7880
B108: 10779 | C108: Locação de container 2,30 X 4,30 m, alt. 2,50 M, p/ sanitário, c/ 5 bacias, 1 lavatório e 4 mictórios | D108: 8 | E108: mês | G108: 1231.25 | J108: =D108*G108 -> 9850
D109: Custo total de atividades auxiliares | J109: =SUM(J107:J108) -> 17730
H110: Subtotal | J110: =J99+J105+J109 -> 18464.2276
B111: E - TEMPO FIXO | D111: Código | E111: Quantidade | F111: Unidade | H111: Custo Unitário | I111: Custo Unitário
B112: - | C112: 0 | D112: - | E112: 0 | F112: t | H112: 0 | J112: =ROUNDDOWN(E112*H112,4) -> 0
B113: - | C113: 0 | D113: - | E113: 0 | F113: t | H113: 0 | J113: =ROUNDDOWN(E113*H113,4) -> 0
D114: Custo unitário total de tempo fixo | J114: =SUM(J112:J113) -> 0
B115: F - MOMENTO DE TRANSPORTE | D115: Quantidade | E115: Unidade | F115: DMT | J115: Custo Unitário
F116: LN | G116: RP | H116: P
B117: - | C117: 0 | D117: 0 | E117: tkm
B118: - | C118: 0 | D118: 0 | E118: tkm
D119: Custo unitário total de transporte
F120: Custo unitário direto total | J120: =TRUNC(J110+J114,2) -> 18464.22
B121: Obs.
A123: =A84+1 -> 4 | B123: 1ª/GRD | K123: =J161 -> 550.64
B124: OBRA: | C124: PAVIMENTAÇÃO ASFÁLTICA EM CBUQ - ESTRADA PARA SANTO ANTÔNIO DA BOA VISTA (SÃO JOÃO DA PONTE / MG)
B125: Custo Unitário de Referência | E125: Minas Gerais
E126: Janeiro/2025 | H126: Produção da equipe | I126: 1 | J126: =VLOOKUP(A123,ORÇAMENTO!$A$10:$L$66,7,1) -> M2
B127: 103689 | C127: PLACA DE OBRA EM CHAPA DE AÇO GALVANIZADO | I127: Valores em reais (R$)
B128: A - EQUIPAMENTOS | D128: Quantidade | E128: Utilização | G128: Custo Horário | J128: Custo
E129: Operativa | F129: Improdutiva | G129: Produtivo | H129: Improdutivo | J129: Horário Total
B130: - | C130: 0 | G130: 0 | H130: 0 | J130: =D130*(E130*G130+F130*H130) -> 0
B131: - | C131: 0 | G131: 0 | H131: 0 | J131: =D131*(E131*G131+F131*H131) -> 0
H132: Custo horário total de equipamentos | J132: =SUM(J130:J131) -> 0
B133: B - MÃO DE OBRA | D133: Quantidade | E133: Unidade | G133: Custo Horário | H133: Custo Horário Total
B134: P9824 | C134: Servente | D134: 1.1186 | E134: h | G134: 21.4354 | J134: =D134*G134 -> 23.97763844
B135: P9808 | C135: Carpinteiro | D135: 0.3729 | E135: h | G135: 26.8814 | J135: =D135*G135 -> 10.02407406
D136: Custo horário total de mão de obra | J136: =SUM(J134:J135) -> 34.0017125
D137: Custo horário total de execução | J137: =J132+J136 -> 34.0017125
D138: Custo unitário de execução | J138: =J137/I126 -> 34.0017125
H139: Custo do FIC | J139: -
H140: Custo do FIT | J140: -
B141: C - MATERIAL | D141: Quantidade | E141: Unidade | G141: Preço Unitário | H141: Custo Unitário
B142: M1358 | C142: Sarrafo em madeira de terceira - E = 2,5 cm e L = 5 cm | D142: 6.4166 | E142: m | G142: 2.0291 | J142: =D142*G142 -> 13.01992306 | L142: =VLOOKUP(A$123,ORÇAMENTO!A$11:L$66,8,FALSE) -> 4 | M142: =J142*L142 -> 52.07969224
B143: M1205 | C143: Prego de ferro | D143: 0.0245 | E143: kg | G143: 16.7718 | J143: =D143*G143 -> 0.4109091 | L143: =VLOOKUP(A$123,ORÇAMENTO!A$11:L$66,8,FALSE) -> 4 | M143: =J143*L143 -> 1.6436364
B144: M0998 | C144: Madeira estrutural de eucalipto | D144: 0.022608 | E144: m³ | G144: 2685.3184 | J144: =D144*G144 -> 60.70967839 | L144: =VLOOKUP(A$123,ORÇAMENTO!A$11:L$66,8,FALSE) -> 4 | M144: 242.8387135
B145: 4813 | C145: Placa de obra (para construção civil) em chapa galvanizada *N. 22*, adesivada, de *2,4 X 1,2* m (sem postes para fixação) | D145: 1 | E145: m² | G145: 442.5 | H145: SINAPI | J145: 442.5 | L145: =VLOOKUP(A$123,ORÇAMENTO!A$11:L$66,8,FALSE) -> 4 | M145: 1770
D146: Custo unitário total de material | J146: =SUM(J142:J145) -> 516.6405105
B147: D - ATIVIDADES AUXILIARES | D147: Quantidade | E147: Unidade | G147: Custo Unitário | H147: Custo Unitário
B148: - | C148: 0 | D148: 0 | E148: 0 | G148: 0 | J148: =D148*G148 -> 0
B149: - | C149: 0 | D149: 0 | E149: 0 | G149: 0 | J149: =D149*G149 -> 0
D150: Custo total de atividades auxiliares | J150: =SUM(J148:J149) -> 0
H151: Subtotal | J151: =J138+J146+J150 -> 550.642223
B152: E - TEMPO FIXO | D152: Código | E152: Quantidade | F152: Unidade | H152: Custo Unitário | I152: Custo Unitário
B153: - | C153: 0 | D153: - | E153: 0 | F153: t | H153: 0 | J153: =ROUNDDOWN(E153*H153,4) -> 0
B154: - | C154: 0 | D154: - | E154: 0 | F154: t | H154: 0 | J154: =ROUNDDOWN(E154*H154,4) -> 0
D155: Custo unitário total de tempo fixo | J155: =SUM(J153:J154) -> 0
B156: F - MOMENTO DE TRANSPORTE | D156: Quantidade | E156: Unidade | F156: DMT | J156: Custo Unitário
F157: LN | G157: RP | H157: P
B158: - | C158: 0 | D158: 0 | E158: tkm
B159: - | C159: 0 | D159: 0 | E159: tkm
D160: Custo unitário total de transporte
F161: Custo unitário direto total | J161: =TRUNC(J151+J155,2) -> 550.64
B162: Obs.
A164: 5 | B164: 1ª/GRD | K164: =J208 -> 4264.15
B165: OBRA: | C165: PAVIMENTAÇÃO ASFÁLTICA EM CBUQ - ESTRADA PARA SANTO ANTÔNIO DA BOA VISTA (SÃO JOÃO DA PONTE / MG)
B166: Custo Unitário de Referência | E166: Minas Gerais
E167: Janeiro/2025 | H167: Produção da equipe | I167: 1 | J167: =VLOOKUP(A164,ORÇAMENTO!$A$10:$L$66,7,1) -> MÊS
B168: CPU.4 | C168: VEÍCULO PARA A FISCALIZAÇÃO, MÁXIMO 02 ANOS DE USO OU 50.000KM, PREFERENCIALMENTE NA COR BRANCA, COM IDENTIFICAÇÃO CONFORME ESPECIFICAÇÕES DA CODEVASF, INCLUSIVE COMBUSTÍVEL, MANUTENÇÃO, SEGURO E IMPOSTOS - CONFORME ESPECIFICAÇÕES | I168: Valores em reais (R$)
B169: A - EQUIPAMENTOS | D169: Quantidade | E169: Utilização | G169: Custo Horário | J169: Custo
E170: Operativa | F170: Improdutiva | G170: Produtivo | H170: Improdutivo | J170: Horário Total
B171: - | C171: 0 | G171: 0 | H171: 0 | J171: =D171*(E171*G171+F171*H171) -> 0
B172: - | C172: 0 | G172: 0 | H172: 0 | J172: =D172*(E172*G172+F172*H172) -> 0
H173: Custo horário total de equipamentos | J173: =SUM(J171:J172) -> 0
B174: B - MÃO DE OBRA | D174: Quantidade | E174: Unidade | G174: Custo Horário | H174: Custo Horário Total
B175: - | C175: 0 | D175: 0 | E175: 0 | G175: 0 | H175: 0 | J175: =D175*G175 -> 0
B176: - | C176: 0 | D176: 0 | E176: 0 | G176: 0 | H176: 0 | J176: =D176*G176 -> 0
D177: Custo horário total de mão de obra | J177: =SUM(J175:J176) -> 0
D178: Custo horário total de execução | J178: =J173+J177 -> 0
D179: Custo unitário de execução | J179: =J178/I167 -> 0
H180: Custo do FIC | J180: -
H181: Custo do FIT | J181: -
B182: C - MATERIAL | D182: Quantidade | E182: Unidade | G182: Preço Unitário | H182: Custo Unitário
B183: - | C183: 0 | D183: 0 | E183: 0 | G183: 0 | J183: =D183*G183 -> 0 | L183: =VLOOKUP(A$211,ORÇAMENTO!A$11:L$66,8,FALSE) -> 35000 | M183: =J183*L183 -> 0
B184: - | C184: 0 | D184: 0 | E184: 0 | G184: 0 | J184: 0 | L184: =VLOOKUP(A$211,ORÇAMENTO!A$11:L$66,8,FALSE) -> 35000 | M184: =J184*L184 -> 0
D185: Custo unitário total de material | J185: =SUM(J183:J184) -> 0
B186: D - ATIVIDADES AUXILIARES | D186: Quantidade | E186: Unidade | G186: Custo Unitário | H186: Custo Unitário
B187: - | C187: Depreciação | D187: 1 | E187: vb | G187: 692.6666667 | J187: =D187*G187 -> 692.6666667
B188: - | C188: Oportunidade de Capital | D188: 1 | E188: vb | G188: 510.84 | J188: =D188*G188 -> 510.84
B189: - | C189: Impostos e Licenciamento | D189: 1 | E189: vb | G189: 346.33 | J189: 346.33
B190: - | C190: Seguro Total | D190: 1 | E190: vb | G190: 281.58 | J190: 281.58
B191: - | C191: Combustível | D191: 1 | E191: vb | G191: 1287.86 | J191: 1287.86
B192: - | C192: Manutenções Preventivas | D192: 1 | E192: vb | G192: 254.02 | J192: 254.02
B193: - | C193: Limpeza | D193: 1 | E193: vb | G193: 100 | J193: 100
B194: - | C194: Pneus | D194: 1 | E194: vb | G194: 115.18 | J194: 115.18
B195: - | C195: Peças | D195: 1 | E195: vb | G195: 77.22 | J195: 77.22
B196: - | C196: Manutenção Corretiva (%) | D196: 1 | E196: vb | G196: 598.46 | J196: =D196*G196 -> 598.46
D197: Custo total de atividades auxiliares | J197: =SUM(J187:J196) -> 4264.156667
H198: Subtotal | J198: =J179+J185+J197 -> 4264.156667
B199: E - TEMPO FIXO | D199: Código | E199: Quantidade | F199: Unidade | H199: Custo Unitário | I199: Custo Unitário
B200: - | C200: 0 | D200: - | E200: 0 | F200: t | H200: 0 | J200: =ROUNDDOWN(E200*H200,4) -> 0
B201: - | C201: 0 | D201: - | E201: 0 | F201: t | H201: 0 | J201: =ROUNDDOWN(E201*H201,4) -> 0
D202: Custo unitário total de tempo fixo | J202: =SUM(J200:J201) -> 0
B203: F - MOMENTO DE TRANSPORTE | D203: Quantidade | E203: Unidade | F203: DMT | J203: Custo Unitário
F204: LN | G204: RP | H204: P
... 1594 more rows

Sheet AUX.-VEIC.
B2: CÁLCULO DO CUSTO POR MÊS DE VEÍCULOS
B3: Veículo: Polo TSI, Onix Turbo, Argo 1.3, HB-20 Turbo | D3: Data: | E3: 2025-05-28
B4: DADOS ELEMENTARES DO VEÍCULO
B5: Dados Básicos | C5: Preço (R$) | D5: Quantidade | E5: Vida Útil
B6: Quilometragem média mensal | D6: 3000
B7: Valor de Aquisição (VA) | C7: 103900
B8: Taxa de Juros (i)% | D8: 14.75
B9: IPVA e Seguro Obrigatório (4%) | C9: =0.04*C7 -> 4156
B10: Lavagem | C10: 50 | D10: 2
B11: Pneus | C11: 479.9 | D11: 4 | E11: 50000
B12: Combustível | C12: 6.01 | D12: 14
B13: Óleo Lubrificante + Filtros (revisão) | C13: =4*(188.59+213.69+186.16+283.83+186.16)/5 -> 846.744 | D13: 1 | E13: 10000
B14: Seguro Total Anual | C14: 3378.94
B15: Jogo de Amortecedores | C15: 1287 | E15: 50000
B16: Coeficiente de Manutenção | D16: 4.8e-06
B17: Motorista | C17: =5284.47/1.7393 -> 3038.274018 | D17: 1
B18: CÁLCULO DO CUSTO POR MÊS
B19: DEPRECIAÇÃO | C19: D = (VA-0,60xVA) / 12 x 5 | E19: =(C7-(0.6*C7))/60 -> 692.6666667 | F19: =E19/E$30 -> 0.16243931
B20: JUROS | C20: J = (VA-0,60xVA) x i / 12 | E20: =ROUND(((C7-0.6*C7)*D8/100)/12,2) -> 510.84 | F20: 0.1197986003
B21: LICENCIAMENTO | C21: L = (IPVA=SEG.OBRIG.)/12 | E21: =ROUND(C9/12,2) -> 346.33 | F21: 0.08121887329
B22: SEGURO TOTAL | C22: ST = SEGURO ANUAL/12 | E22: =ROUND(C14/12,2) -> 281.58 | F22: 0.06603415916
B23: COMBUSTÍVEL | C23: OD = (Comb./Consu)x Km.mês | E23: =ROUND(C12/D12*D6,2) -> 1287.86 | F23: 0.3020198601
B24: ÓLEO LUBRIFICANTE | C24: OL = ((Ol. X Quant)/Vida Útil)xKm.mês) | E24: =ROUND(((C13*D13)/E13)*D6,2) -> 254.02 | F24: 0.05957098199
B25: LAVAGEM | C25: LL = Preço Lavagem x Quantidade | E25: =ROUND(C10*D10,2) -> 100 | F25: 0.02345129596
B26: PNEUS | C26: P = ((P. PneusxQuant)/Vida Útil)xkm.mês) | E26: =ROUND(((C11*D11)/E11)*D6,2) -> 115.18 | F26: 0.02701120268
B27: AMORTECEDORES | C27: AM = (P. Amort/Vida Útil)xkm.mês | E27: =ROUND(C15/E15*D6,2) -> 77.22 | F27: 0.01810909074
B28: MANUTENÇÃO | C28: M = (VA-VPxK)xkm.mês | E28: =ROUND((C7-0.6*C7)*D16*D6,2) -> 598.46 | F28: 0.1403466258
B29: MOTORISTA | C29: MOT = SALÁRIO+LEIS SOCIAIS | E29: =ROUND((C17+C17*0.7368),2) -> 5276.87
B30: CUSTO POR MÊS | C30: SEM MOTORISTA | E30: =SUM(E19:E28) -> 4264.156667 | F30: =E30-E23 -> 2976.296667
C31: COM MOTORISTA | E31: =E30+E29 -> 9541.026667

Sheet CPU-FORNEC
A1: 1 | B1: CODEVASF | E1: COMPOSIÇÃO DE PREÇO UNITÁRIO | I1: =H24 -> 0 | J1: =H26 -> 0 | K1: BDI CALCULADO: | M1: =ORÇAMENTO!L6 -> 15
B2: OBRA: | C2: PAVIMENTAÇÃO ASFÁLTICA EM CBUQ - ESTRADA PARA SANTO ANTÔNIO DA BOA VISTA (SÃO JOÃO DA PONTE / MG) | G2: DATA: | H2: =ORÇAMENTO!C6 -> AGOSTO / 2025 | K2: BDI DIFERENCIADO: | M2: ='BDI FORN'!D31/100 -> 0.15
B3: SERVIÇO: | C3: CPU.1 | E3: Referência: | F3: CODEVASF | G3: UNIDADE: | H3: =VLOOKUP(A1,ORÇAMENTO!A11:L33,5) -> MOBILIZAÇÃO E DESMOBILIZAÇÃO
B5: TIPO ITEM | C5: CODIGO ITEM | D5: DESCRIÇÃO ITEM | E5: UNIDADE ITEM | F5: COEFICIENTE | G5: PRECO UNITARIO | H5: CUSTO TOTAL | J5: distancia = | K5: 90 | L5: B.DESPACHO
B6: EQUIPAMENTOS | J6: Pá carregadeira | M6: 10.1 | N6: ton
C7: E9001 | D7: E9001 | E7: E9001 | G7: E9001
B10: MÃO DE OBRA
B14: MATERIAIS
H17: =ROUNDDOWN(F17*G17,2) -> 0 | J17: Motoniveladora | M17: 12.47 | N17: ton
B18: ATIVIDADES AUXILIARES | J18: Trator de pneus | M18: 2.8 | N18: ton
H19: =ROUNDDOWN(F19*G19,2) -> 0
H20: 0
H21: 0
H22: =ROUNDDOWN(F22*G22,2) -> 0 | J22: Rolo Compactador | M22: 15.33 | N22: ton
B23: PRODUÇÃO DA EQUIPE | E23: 1 | F23: CUSTO | H23: =SUM(H6:H22) -> 0 | J23: Grade de disco | M23: 1 | N23: ton
B24: TOTAL | H24: =H23/E23 -> 0 | I24: OK | J24: RETROESCAVADEIRA | M24: 6.67 | N24: ton
B25: BDI % | H25: =1+$M$1 -> 16
B26: TOTAL DO SERVIÇO - R$ | H26: =ROUND(H24*H25,2) -> 0
A28: 45 | B28: CODEVASF | E28: COMPOSIÇÃO DE PREÇO UNITÁRIO | I28: =H35 -> 2723.1 | J28: =H37 -> 3131.57
B29: OBRA: | C29: PAVIMENTAÇÃO ASFÁLTICA EM CBUQ - ESTRADA PARA SANTO ANTÔNIO DA BOA VISTA (SÃO JOÃO DA PONTE / MG) | G29: DATA: | H29: =$H$2 -> AGOSTO / 2025
B30: SERVIÇO: | C30: AQUISIÇÃO DE EMULSÃO ASFÁLTICA PARA IMPRIMAÇÃO (EAI) - EXCLUSIVE TRANSPORTE | E30: Referência: | F30: CPU.7 | G30: UNIDADE: | H30: =VLOOKUP(A28,ORÇAMENTO!$A$11:$L$73,7) -> T
B32: TIPO ITEM | C32: CODIGO ITEM | D32: DESCRIÇÃO ITEM | E32: UNIDADE ITEM | F32: COEFICIENTE | G32: PRECO UNITARIO | H32: CUSTO TOTAL
B33: INSUMO | C33: ANP | D33: EMULSÃO ASFÁLTICA PARA SERVIÇO DE IMPRIMAÇÃO (MEMÓRIA EM ANEXO) | E33: T | F33: 1 | G33: 2723.101315 | H33: =ROUNDDOWN(F33*G33,2) -> 2723.1
B34: PRODUÇÃO DA EQUIPE | E34: 1 | F34: CUSTO | H34: =SUM(H33:H33) -> 2723.1
B35: TOTAL | H35: =H34/E34 -> 2723.1
B36: BDI % | H36: =1+$M$2 -> 1.15
B37: TOTAL DO SERVIÇO - R$ | H37: =ROUND(H35*H36,2) -> 3131.57 | I37: OK
A39: =A28+1 -> 46 | B39: CODEVASF | E39: COMPOSIÇÃO DE PREÇO UNITÁRIO | I39: =H46 -> 466.4 | J39: =H48 -> 536.36
B40: OBRA: | C40: PAVIMENTAÇÃO ASFÁLTICA EM CBUQ - ESTRADA PARA SANTO ANTÔNIO DA BOA VISTA (SÃO JOÃO DA PONTE / MG) | G40: DATA: | H40: =$H$2 -> AGOSTO / 2025
B41: SERVIÇO: | C41: TRANSPORTE DE EMULSÃO ASFÁLTICA PARA IMPRIMAÇÃO (EAI) | E41: Referência: | F41: CPU.8 | G41: UNIDADE: | H41: =VLOOKUP(A39,ORÇAMENTO!$A$11:$L$73,7) -> T
B43: TIPO ITEM | C43: CODIGO ITEM | D43: DESCRIÇÃO ITEM | E43: UNIDADE ITEM | F43: COEFICIENTE | G43: PRECO UNITARIO | H43: CUSTO TOTAL
B44: INSUMO | C44: - | D44: TRANSPORTE DE EMULSÃO ASFÁLTICA PARA IMPRIMAÇÃO (EAI), INCLUINDO CUSTO TOTAL DO TRANSPORTE (COMBUSTÍVEL, PEDÁGIOS, ETC.) E ICMS - MEMÓRIA ANEXA | E44: T | F44: 1 | G44: 466.4021053 | H44: =ROUNDDOWN(F44*G44,2) -> 466.4
B45: PRODUÇÃO DA EQUIPE | E45: 1 | F45: CUSTO | H45: =SUM(H44:H44) -> 466.4
B46: TOTAL | H46: =H45/E45 -> 466.4
B47: BDI % | H47: =1+$M$2 -> 1.15
B48: TOTAL DO SERVIÇO - R$ | H48: =ROUND(H46*H47,2) -> 536.36 | I48: OK
A50: =A39+1 -> 47 | B50: CODEVASF | E50: COMPOSIÇÃO DE PREÇO UNITÁRIO | I50: =H57 -> 3456.95 | J50: =H59 -> 3975.49
B51: OBRA: | C51: PAVIMENTAÇÃO ASFÁLTICA EM CBUQ - ESTRADA PARA SANTO ANTÔNIO DA BOA VISTA (SÃO JOÃO DA PONTE / MG) | G51: DATA: | H51: =$H$2 -> AGOSTO / 2025
B52: SERVIÇO: | C52: AQUISIÇÃO DE EMULSAO ASFALTICA CATIONICA RR-1C - EXCLUSIVE TRANSPORTE | E52: Referência: | F52: CPU.9 | G52: UNIDADE: | H52: =VLOOKUP(A50,ORÇAMENTO!$A$11:$L$73,7) -> T
B54: TIPO ITEM | C54: CODIGO ITEM | D54: DESCRIÇÃO ITEM | E54: UNIDADE ITEM | F54: COEFICIENTE | G54: PRECO UNITARIO | H54: CUSTO TOTAL
B55: INSUMO | C55: ANP | D55: EMULSÃO ASFÁLTICA CATIÔNICA RR-1C(MEMÓRIA EM ANEXO) | E55: T | F55: 1 | G55: 3456.956226 | H55: =ROUNDDOWN(F55*G55,2) -> 3456.95
B56: PRODUÇÃO DA EQUIPE | E56: 1 | F56: CUSTO | H56: =SUM(H55:H55) -> 3456.95
B57: TOTAL | H57: =H56/E56 -> 3456.95 | I57: OK
B58: BDI % | H58: =1+$M$2 -> 1.15
B59: TOTAL DO SERVIÇO - R$ | H59: =ROUND(H57*H58,2) -> 3975.49
A61: =A50+1 -> 48 | B61: CODEVASF | E61: COMPOSIÇÃO DE PREÇO UNITÁRIO | I61: =H68 -> 484.42 | J61: =H70 -> 557.08
B62: OBRA: | C62: PAVIMENTAÇÃO ASFÁLTICA EM CBUQ - ESTRADA PARA SANTO ANTÔNIO DA BOA VISTA (SÃO JOÃO DA PONTE / MG) | G62: DATA: | H62: =$H$2 -> AGOSTO / 2025
B63: SERVIÇO: | C63: TRANSPORTE DE EMULSÃO ASFÁLTICA CATIONICA RR-1C | E63: Referência: | F63: CPU.10 | G63: UNIDADE: | H63: =VLOOKUP(A61,ORÇAMENTO!$A$11:$L$73,7) -> T
B65: TIPO ITEM | C65: CODIGO ITEM | D65: DESCRIÇÃO ITEM | E65: UNIDADE ITEM | F65: COEFICIENTE | G65: PRECO UNITARIO | H65: CUSTO TOTAL
B66: INSUMO | C66: - | D66: TRANSPORTE DE EMULSÃO ASFÁLTICA CATIONICA TIPO RR-1C, INCLUINDO CUSTO TOTAL DO TRANSPORTE (COMBUSTÍVEL, PEDÁGIOS, ETC.) E ICMS - MEMÓRIA ANEXA | E66: T | F66: 1 | G66: 484.425 | H66: =ROUNDDOWN(F66*G66,2) -> 484.42
B67: PRODUÇÃO DA EQUIPE | E67: 1 | F67: CUSTO | H67: =SUM(H66:H66) -> 484.42
B68: TOTAL | H68: =H67/E67 -> 484.42 | I68: OK
B69: BDI % | H69: =1+$M$2 -> 1.15
B70: TOTAL DO SERVIÇO - R$ | H70: =ROUND(H68*H69,2) -> 557.08
A72: =A61+1 -> 49 | B72: CODEVASF | E72: COMPOSIÇÃO DE PREÇO UNITÁRIO | I72: =H79 -> 4496.77 | J72: =H81 -> 5171.29
B73: OBRA: | C73: PAVIMENTAÇÃO ASFÁLTICA EM CBUQ - ESTRADA PARA SANTO ANTÔNIO DA BOA VISTA (SÃO JOÃO DA PONTE / MG) | G73: DATA: | H73: =$H$2 -> AGOSTO / 2025
B74: SERVIÇO: | C74: AQUISIÇÃO DE CONCRETO ASFÁLTICO DE PETRÓLEO - CAP 50/70 - EXCLUSIVE TRANSPORTE | E74: Referência: | F74: CPU.11 | G74: UNIDADE: | H74: =VLOOKUP(A72,ORÇAMENTO!$A$11:$L$73,7) -> T
B76: TIPO ITEM | C76: CODIGO ITEM | D76: DESCRIÇÃO ITEM | E76: UNIDADE ITEM | F76: COEFICIENTE | G76: PRECO UNITARIO | H76: CUSTO TOTAL
B77: INSUMO | C77: 1518 | D77: CIMENTOS ASFÁLTICO DE PETRÓLEO TIPO CAP 50/70 (MEMÓRIA EM ANEXO) | E77: T | F77: 1 | G77: 4496.770002 | H77: =ROUNDDOWN(F77*G77,2) -> 4496.77
B78: PRODUÇÃO DA EQUIPE | E78: 1 | F78: CUSTO | H78: =SUM(H77:H77) -> 4496.77
B79: TOTAL | H79: =H78/E78 -> 4496.77
B80: BDI % | H80: =1+$M$2 -> 1.15
B81: TOTAL DO SERVIÇO - R$ | H81: =ROUND(H79*H80,2) -> 5171.29
A83: =A72+1 -> 50 | B83: CODEVASF | E83: COMPOSIÇÃO DE PREÇO UNITÁRIO | I83: =H90 -> 754.76 | J83: =H92 -> 867.97
B84: OBRA: | C84: PAVIMENTAÇÃO ASFÁLTICA EM CBUQ - ESTRADA PARA SANTO ANTÔNIO DA BOA VISTA (SÃO JOÃO DA PONTE / MG) | G84: DATA: | H84: =$H$2 -> AGOSTO / 2025
B85: SERVIÇO: | C85: TRANSPORTE DE CONCRETO ASFÁLTICO DE PETRÓLEO - CAP 50/70 | E85: Referência: | F85: CPU.12 | G85: UNIDADE: | H85: =VLOOKUP(A83,ORÇAMENTO!$A$11:$L$73,7) -> T
B87: TIPO ITEM | C87: CODIGO ITEM | D87: DESCRIÇÃO ITEM | E87: UNIDADE ITEM | F87: COEFICIENTE | G87: PRECO UNITARIO | H87: CUSTO TOTAL
B88: INSUMO | C88: - | D88: TRANSPORTE DE CIMENTO ASFÁLTICO DE PETRÓLEO TIPO CAP 50-70, INCLUINDO CUSTO TOTAL DO TRANSPORTE (COMBUSTÍVEL, PEDÁGIOS, ETC.) E ICMS - MEMÓRIA ANEXA | E88: T | F88: 1 | G88: 754.7650649 | H88: =ROUNDDOWN(F88*G88,2) -> 754.76
B89: PRODUÇÃO DA EQUIPE | E89: 1 | F89: CUSTO | H89: =SUM(H88:H88) -> 754.76
B90: TOTAL | H90: =H89/E89 -> 754.76
B91: BDI % | H91: =1+$M$2 -> 1.15
B92: TOTAL DO SERVIÇO - R$ | H92: =ROUND(H90*H91,2) -> 867.97

Sheet BDI SERV
B3: DETALHAMENTO DO BDI - SERVIÇOS
B6: Item | C6: Descrição dos Serviços | D6: % - PV | E6: % - CD
B8: 1 | C8: ADMINISTRAÇÃO CENTRAL | E8: =SUM(E9:E11) -> 4.01
B9: 1.1 | C9: ESCRITÓRIO CENTRAL | E9: 4.01
B10: 1.2 | C10: VIAGENS
B11: 1.3 | C11: OUTROS
B13: 2 | C13: IMPOSTOS E TAXAS | D13: =SUM(D14:D17) -> 6.65 | E13: =SUM(E14:E17) -> 0
B14: 2.1 | C14: ISS - Proposta | D14: =D36*100 -> 3
B15: 2.2 | C15: PIS | D15: 0.65
B16: 2.3 | C16: Cofins | D16: 3
B17: 2.4 | C17: Contribuição Previdenciaria (CPRB)
B19: 3 | C19: TAXA DE RISCO | E19: =SUM(E20:E22) -> 0.96
B20: 3.1 | C20: SEGURO | E20: 0.2
B21: 3.2 | C21: RISCO | E21: 0.56
B22: 3.3 | C22: GARANTIA | E22: 0.2
B24: 4 | C24: DESPESAS FINANCEIRAS | E24: 1.11
B26: 5 | C26: LUCRO | E26: 7.3
B28: BDI APRESENTADO: | E28: =IF($D$43=$C$45,$D$45,IF($D$43=$C$46,$D$46,IF($D$43=$C$46,$D$46,IF($D$43=$C$47,$D$47,0)))) -> 22
C30: Legislação Municipal: | D30: Decreto nº 08, de 17 de março de 2023
C31: Município: | D31: São João da Ponte
C32: Alíquota ISSQN: | D32: 0.05 | E32: Município
C33: Base de Cálculo: | D33: Dedução - Material
C34: Valor Serviço Sem BDI: | D34: 3949381.455
C35: Dedução - Material (estimativa): | D35: =0.4*D34 -> 1579752.582 | E35: =D35/D34 -> 0.4
C36: ISSQN BDI: | D36: =IF(D34="",0,ROUND(IF(D33=D51,((1-(D35/D34))*D32),D32*D33),4)) -> 0.03 | E36: (*)
A38: Acórdão nº 2.622/2013 - TCU Plenário
A39: BDI = ARRED((((((1+(AC+TR)/100)*(1+DF/100)*(1+L/100))/(1-IMP/100))-1)*100);2)
B41: (*) É obrigação da licitante a verificação da Legislação Tributária vigente no município, bem como o cálculo dos valores totais de serviços e materiais estimados, para apresentação de sua proposta.
C43: Forma de Cálculo do BDI: | D43: BDI - Acórdão nº 2.622/2013 - TCU
C45: BDI - Digitado | D45: =ROUND(E8+E13+E19+E24+E26,2) -> 13.38
C46: BDI - Calculado | D46: =ROUND((((1+(E8/100+E24/100+E19/100))/(1-(D13/100+E26/100)))-1)*100,2) -> 23.28
C47: BDI - Acórdão nº 2.622/2013 - TCU | D47: =ROUND((((((1+(E8+E19)/100)*(1+E24/100)*(1+E26/100))/(1-D13/100))-1)*100),2) -> 22
D51: Dedução - Material | E51: Município
D52: 0.1 | E52: Simples Nacional
D53: 0.2 | E53: Municípios Indefinidos
D54: 0.3
D55: 0.4
D56: 0.5
D57: 0.6
D58: 0.7
D59: 0.8
D60: 0.9
D61: 1
D62: =E33 -> 0

Sheet BDI FORN
B1: DETALHAMENTO DO BDI - FORNECIMENTO (MATERIAL ASFÁLTICO)
B4: Item | C4: Descrição dos Serviços | D4: % | E4: %
D5: PV | E5: CD
B7: 1 | C7: ADMINISTRAÇÃO CENTRAL | E7: 3.45
B8: 1.1 | C8: ESCRITÓRIO CENTRAL
B9: 1.2 | C9: VIAGENS
B10: 1.3 | C10: OUTROS
B12: 2 | C12: IMPOSTOS E TAXAS | D12: =SUM(D13:D16) -> 3.65 | E12: =SUM(E13:E16) -> 4.56
B13: 2.1 | C13: ISS (*) | E13: =ROUND(D13*1.2515,2) -> 0
B14: 2.2 | C14: PIS | D14: 0.65 | E14: =ROUND(D14*1.2515,2) -> 0.81
B15: 2.3 | C15: Cofins | D15: 3 | E15: =ROUND(D15*1.2515,2) -> 3.75
B16: 2.4 | C16: CONTRIBUIÇÃO PREVIDENCIÁRIA SOBRE A RENDA BRUTA | D16: 0 | E16: =ROUND(D16*1.2515,2) -> 0
B18: 3 | C18: TAXA DE RISCO | E18: =SUM(E19:E22) -> 1.08
B19: 3.1 | C19: SEGURO | E19: 0.24
B20: 3.2 | C20: RISCO | E20: 0.6
B21: 3.3 | C21: GARANTIA | E21: 0.24
B23: 4 | C23: DESPESAS FINANCEIRAS | E23: 0.85
B25: 5 | C25: LUCRO | E25: 5.11
C27: BDI - CALCULADO | E27: =ROUND((((1+(E7+E18)/100)*(1+E23/100)*(1+E25/100)/(1-D12/100)-1)*100),2) -> 15
A29: BDI = ((1+((AC+S+R+G)/100))x(1+DF/100)x(1+L/100)/(1-I/100)-1)*100
B31: BDI (CALCULADO): | D31: =ROUND((((1+((E7+E18)/100))*(1+E23/100)*(1+E25/100))/(1-D12/100)-1)*100,2) -> 15 | E31: %
A37: BDI EM CONFORMIDADE COM OS ACÓRDÃOS Nº 2369/2011 e ACÓRDÃO Nº 2.622/2013 - TCU - PLENÁRIO

Sheet CRONOGRAMA
B1: CRONOGRAMA FÍSICO-FINANCEIRO
B2: OBRA: | C2: =ORÇAMENTO!C5 -> PAVIMENTAÇÃO ASFÁLTICA EM CBUQ - ESTRADA PARA SANTO ANTÔNIO DA BOA VISTA (SÃO JOÃO DA PONTE / MG) | F2: VALOR: | G2: =ORÇAMENTO!L66 -> 6916869.14
F3: PRAZO: | G3: 240 DIAS
B5: ITEM | C5: ETAPAS/DESCRIÇAO | D5: FISICO/ FINANCEIRO | E5: TOTAL ETAPAS | F5: MÊS 1 | G5: MÊS 2 | H5: MÊS 3 | I5: MÊS 4 | J5: MÊS 5 | K5: MÊS 6 | L5: MÊS 7 | M5: MÊS 8 | N5: TOTAL
A6: A | B6: =VLOOKUP(A6,ORÇAMENTO!$A$10:$L$66,2) -> 1 | C6: =VLOOKUP(A6,ORÇAMENTO!$A$10:$L$66,5) -> SERVIÇOS PRELIMINARES | D6: FISICO | E6: =ROUND(E7/$G$2,4) -> 0.0627 | F6: 0.2 | G6: 0.1 | H6: 0.1 | I6: 0.1 | J6: 0.1 | K6: 0.1 | L6: 0.1 | M6: 0.2 | N6: =SUM(F6:M6) -> 1
D7: FINANCEIRO | E7: =ORÇAMENTO!L10 -> 433708.53 | F7: =ROUND($E$7*F6,2) -> 86741.71 | G7: =ROUND($E$7*G6,2) -> 43370.85 | H7: =ROUND($E$7*H6,2) -> 43370.85 | I7: =ROUND($E$7*I6,2) -> 43370.85 | J7: 43370.85 | K7: 43370.85 | L7: 43370.85 | M7: 86741.71 | N7: 433708.52
A8: B | B8: =VLOOKUP(A8,ORÇAMENTO!$A$10:$L$66,2) -> 2 | C8: =VLOOKUP(A8,ORÇAMENTO!$A$10:$L$66,5) -> TERRAPLANAGEM E PAVIMENTAÇÃO | D8: FISICO | E8: =ROUND(E9/$G$2,4) -> 0.41 | F8: 0.1 | G8: 0.2 | H8: 0.2 | I8: 0.2 | J8: 0.2 | K8: 0.1 | N8: 1
D9: FINANCEIRO | E9: =ORÇAMENTO!L17 -> 2835730 | F9: =ROUND($E$9*F8,2) -> 283573 | G9: =ROUND($E$9*G8,2) -> 567146 | H9: =ROUND($E$9*H8,2) -> 567146 | I9: =ROUND($E$9*I8,2) -> 567146 | J9: 567146 | K9: 283573 | L9: 0 | M9: 0 | N9: 2835730
A10: C | B10: =VLOOKUP(A10,ORÇAMENTO!$A$10:$L$66,2) -> 3 | C10: =VLOOKUP(A10,ORÇAMENTO!$A$10:$L$66,5) -> TRANSPORTE DE MATERIAIS | D10: FISICO | E10: =ROUND(E11/$G$2,4) -> 0.0869 | F10: 0.15 | G10: 0.2 | H10: 0.2 | I10: 0.2 | J10: 0.15 | K10: 0.1 | N10: 1
D11: FINANCEIRO | E11: =ORÇAMENTO!L26 -> 600840 | F11: =ROUND($E$11*F10,2) -> 90126 | G11: =ROUND($E$11*G10,2) -> 120168 | H11: =ROUND($E$11*H10,2) -> 120168 | I11: =ROUND($E$11*I10,2) -> 120168 | J11: 90126 | K11: 60084 | L11: 0 | M11: 0 | N11: 600840
A12: D | B12: =VLOOKUP(A12,ORÇAMENTO!$A$10:$L$66,2) -> 4 | C12: =VLOOKUP(A12,ORÇAMENTO!$A$10:$L$66,5) -> TRANSPORTE DE MATERIAL ASFÁLTICO (BDI DIFERENCIADO) | D12: FISICO | E12: =ROUND(E13/$G$2,4) -> 0.07 | G12: 0.1 | H12: 0.2 | I12: 0.2 | J12: 0.2 | K12: 0.2 | L12: 0.1 | N12: 1
D13: FINANCEIRO | E13: =ORÇAMENTO!L29 -> 484215 | F13: =ROUND($E$13*F12,2) -> 0 | G13: =ROUND($E$13*G12,2) -> 48421.5 | H13: =ROUND($E$13*H12,2) -> 96843 | I13: =ROUND($E$13*I12,2) -> 96843 | J13: 96843 | K13: 96843 | L13: 48421.5 | M13: 0 | N13: 484215
A14: E | B14: =VLOOKUP(A14,ORÇAMENTO!$A$10:$L$66,2) -> 5 | C14: =VLOOKUP(A14,ORÇAMENTO!$A$10:$L$66,5) -> DRENAGEM E OBRAS COMPLEMENTARES | D14: FISICO | E14: =ROUND(E15/$G$2,4) -> 0.1364 | F14: 0.2 | G14: 0.2 | H14: 0.1 | I14: 0.1 | J14: 0.1 | K14: 0.1 | L14: 0.1 | M14: 0.1 | N14: 1
D15: FINANCEIRO | E15: =ORÇAMENTO!L32 -> 943328.28 | F15: =ROUND($E$15*F14,2) -> 188665.66 | G15: =ROUND($E$15*G14,2) -> 188665.66 | H15: =ROUND($E$15*H14,2) -> 94332.83 | I15: =ROUND($E$15*I14,2) -> 94332.83 | J15: 94332.83 | K15: 94332.83 | L15: 94332.83 | M15: 94332.83 | N15: 943328.3
A16: F | B16: =VLOOKUP(A16,ORÇAMENTO!$A$10:$L$66,2) -> 6 | C16: =VLOOKUP(A16,ORÇAMENTO!$A$10:$L$66,5) -> FORNECIMENTOS - MATERIAL ASFÁLTICO (BDI DIFERENCIADO) | D16: FISICO | E16: =ROUND(E17/$G$2,4) -> 0.2341 | G16: 0.1 | H16: 0.2 | I16: 0.2 | J16: 0.2 | K16: 0.2 | L16: 0.1 | N16: 1
D17: FINANCEIRO | E17: =ORÇAMENTO!L59 -> 1619047.33 | F17: =ROUND($E$17*F16,2) -> 0 | G17: 161904.73 | H17: 323809.47 | I17: 323809.47 | J17: 323809.47 | K17: 323809.47 | L17: 161904.73 | M17: 0 | N17: 1619047.34
B18: TOTAL | D18: FISICO | E18: =SUM(F18:M18) -> 1.000000003 | F18: =F19/$E$19 -> 0.09384395698 | G18: =G19/$E$19 -> 0.1633219766 | H18: =H19/$E$19 -> 0.1800916173 | I18: =I19/$E$19 -> 0.1800916173 | J18: 0.1757483227 | K18: 0.1304077223 | L18: 0.05031610443 | M18: 0.02617868523 | N18: 1.000000003
D19: FINANCEIRO | E19: =E11+E9+E7+E13+E17+E15 -> 6916869.14 | F19: 649106.37 | G19: 1129676.74 | H19: 1245670.15 | I19: =I11+I9+I7+I13+I17+I15 -> 1245670.15 | J19: =J11+J9+J7+J13+J17+J15 -> 1215628.15 | K19: =K11+K9+K7+K13+K17+K15 -> 902013.15 | L19: 348029.91 | M19: 181074.54 | N19: =SUM(F19:M19) - 0.02 -> 6916869.14
B21: OBSERVAÇÕES:
